[Event "December 12 Early 2023"]
[Site "https://www.chess.com"]
[Date "2023.12.12"]
[Round "11"]
[White "Liu, Casper"]
[Black "Arshiya Das"]
[Result "1-0"]
[Board "114"]
[TimeControl "180+1"]
[WhiteFideId "1454153"]
[BlackFideId "25652150"]
[WhiteElo "2432"]
[BlackElo "2222"]
[WhiteTeam "DEN"]
[BlackTeam "IND"]
[WhiteClock "0:00:13"]
[BlackClock "0:01:50"]

1. f4 {[%clk 0:02:57]}  d5 {[%clk 0:02:59]} 2. Nf3 {[%clk 0:02:57]}  Nf6 {[%clk 0:02:55]} 3. e3 {[%clk 0:02:58]}  e6 {[%clk 0:02:55]} 4. g3 {[%clk 0:02:58]}  g6 {[%clk 0:02:53]} 5. Bg2 {[%clk 0:02:59]}  Bg7 {[%clk 0:02:53]} 6. O-O {[%clk 0:03:00]}  O-O {[%clk 0:02:53]} 7. d3 {[%clk 0:02:59]}  c6 {[%clk 0:02:53]} 8. Nc3 {[%clk 0:02:58]}  Nbd7 {[%clk 0:02:53]} 9. e4 {[%clk 0:02:57]}  dxe4 {[%clk 0:02:53]} 10. dxe4 {[%clk 0:02:57]}  Qb6+ {[%clk 0:02:52]} 11. Kh1 {[%clk 0:02:57]}  Ng4 {[%clk 0:02:52]} 12. Qe2 {[%clk 0:02:48]}  f5 {[%clk 0:02:43]} 13. e5 {[%clk 0:02:39]}  Qc7 {[%clk 0:02:39]} 14. h3 {[%clk 0:02:32]}  Nh6 {[%clk 0:02:39]} 15. Be3 {[%clk 0:02:33]}  a5 {[%clk 0:02:38]} 16. Ng5 {[%clk 0:02:28]}  Re8 {[%clk 0:02:35]} 17. a4 {[%clk 0:02:17]}  b6 {[%clk 0:02:34]} 18. Rfd1 {[%clk 0:02:17]}  Ba6 {[%clk 0:02:34]} 19. Qf3 {[%clk 0:02:13]}  Rac8 {[%clk 0:02:32]} 20. Rd6 {[%clk 0:02:12]}  Bxe5 {[%clk 0:02:27]} 21. fxe5 {[%clk 0:02:07]}  Nxe5 {[%clk 0:02:27]} 22. Qd1 {[%clk 0:02:02]}  Rcd8 {[%clk 0:02:22]} 23. Nxe6 {[%clk 0:01:24]}  Qxd6 {[%clk 0:02:14]} 24. Nxd8 {[%clk 0:01:23]}  Qxd8 {[%clk 0:02:05]} 25. Bxh6 {[%clk 0:01:16]}  Qf6 {[%clk 0:01:49]} 26. Qd4 {[%clk 0:01:10]}  Rd8 {[%clk 0:01:48]} 27. Qxb6 {[%clk 0:01:04]}  Bc4 {[%clk 0:01:46]} 28. Re1 {[%clk 0:01:03]}  Bf7 {[%clk 0:01:44]} 29. Rxe5 {[%clk 0:00:59]}  Qxe5 {[%clk 0:01:40]} 30. Qxd8+ {[%clk 0:00:58]}  Be8 {[%clk 0:01:40]} 31. Kh2 {[%clk 0:00:55]}  Kf7 {[%clk 0:01:36]} 32. Bf4 {[%clk 0:00:53]}  Qe6 {[%clk 0:01:29]} 33. Qxa5 {[%clk 0:00:51]}  Kg7 {[%clk 0:01:20]} 34. Qe5+ {[%clk 0:00:51]}  Qxe5 {[%clk 0:01:20]} 35. Bxe5+ {[%clk 0:00:52]}  Kf7 {[%clk 0:01:20]} 36. a5 {[%clk 0:00:52]}  Ke6 {[%clk 0:01:20]} 37. a6 {[%clk 0:00:53]}  Kxe5 {[%clk 0:01:18]} 38. a7 {[%clk 0:00:54]}  Kd4 {[%clk 0:01:18]} 39. a8=Q {[%clk 0:00:55]}  Ke3 {[%clk 0:01:19]} 40. Qxe8+ {[%clk 0:00:55]}  Kd2 {[%clk 0:01:20]} 41. Qe2+ {[%clk 0:00:52]}  Kc1 {[%clk 0:01:19]} 42. b4 {[%clk 0:00:53]}  Kb2 {[%clk 0:01:18]} 43. Qd3 {[%clk 0:00:48]}  Kc1 {[%clk 0:01:16]} 44. Bxc6 {[%clk 0:00:47]}  g5 {[%clk 0:01:15]} 45. Qxf5 {[%clk 0:00:45]}  h5 {[%clk 0:01:14]} 46. Ne2+ {[%clk 0:00:44]}  Kb2 {[%clk 0:01:14]} 47. b5 {[%clk 0:00:41]}  h4 {[%clk 0:01:15]} 48. g4 {[%clk 0:00:40]}  Ka3 {[%clk 0:01:12]} 49. Qe4 {[%clk 0:00:39]}  Kb2 {[%clk 0:01:13]} 50. c4 {[%clk 0:00:38]}  Kb3 {[%clk 0:01:11]} 51. c5 {[%clk 0:00:38]}  Kb2 {[%clk 0:01:10]} 52. Qd3 {[%clk 0:00:38]}  Ka1 {[%clk 0:01:09]} 53. Qd2 {[%clk 0:00:38]}  Kb1 {[%clk 0:01:09]} 54. b6 {[%clk 0:00:38]}  Ka1 {[%clk 0:01:10]} 55. b7 {[%clk 0:00:37]}  Kb1 {[%clk 0:01:11]} 56. Bh1 {[%clk 0:00:36]}  Ka1 {[%clk 0:01:12]} 57. c6 {[%clk 0:00:37]}  Kb1 {[%clk 0:01:13]} 58. c7 {[%clk 0:00:37]}  Ka1 {[%clk 0:01:14]} 59. Nd4 {[%clk 0:00:37]}  Kb1 {[%clk 0:01:14]} 60. Nf3 {[%clk 0:00:37]}  Ka1 {[%clk 0:01:15]} 61. Kg1 {[%clk 0:00:35]}  Kb1 {[%clk 0:01:16]} 62. Kf2 {[%clk 0:00:34]}  Ka1 {[%clk 0:01:16]} 63. Ke3 {[%clk 0:00:35]}  Kb1 {[%clk 0:01:14]} 64. Kd4 {[%clk 0:00:28]}  Ka1 {[%clk 0:01:07]} 65. Kc3 {[%clk 0:00:29]}  Kb1 {[%clk 0:01:06]} 66. Kb3 {[%clk 0:00:30]}  Ka1 {[%clk 0:01:06]} 67. Bg2 {[%clk 0:00:31]}  Kb1 {[%clk 0:01:06]} 68. Ng1 {[%clk 0:00:32]}  Ka1 {[%clk 0:01:06]} 69. Nf3 {[%clk 0:00:32]}  Kb1 {[%clk 0:01:07]} 70. Bf1 {[%clk 0:00:32]}  Ka1 {[%clk 0:01:08]} 71. Be2 {[%clk 0:00:32]}  Kb1 {[%clk 0:01:09]} 72. Ba6 {[%clk 0:00:32]}  Ka1 {[%clk 0:01:10]} 73. Bb5 {[%clk 0:00:33]}  Kb1 {[%clk 0:01:11]} 74. Bc4 {[%clk 0:00:33]}  Ka1 {[%clk 0:01:12]} 75. Bg8 {[%clk 0:00:33]}  Kb1 {[%clk 0:01:12]} 76. Bd5 {[%clk 0:00:34]}  Ka1 {[%clk 0:01:13]} 77. Nxg5 {[%clk 0:00:34]}  Kb1 {[%clk 0:01:14]} 78. Nf3 {[%clk 0:00:35]}  Ka1 {[%clk 0:01:15]} 79. g5 {[%clk 0:00:36]}  Kb1 {[%clk 0:01:16]} 80. g6 {[%clk 0:00:36]}  Ka1 {[%clk 0:01:16]} 81. g7 {[%clk 0:00:37]}  Kb1 {[%clk 0:01:16]} 82. Ka3 {[%clk 0:00:38]}  Ka1 {[%clk 0:01:17]} 83. Kb4 {[%clk 0:00:38]}  Kb1 {[%clk 0:01:18]} 84. Kc5 {[%clk 0:00:39]}  Ka1 {[%clk 0:01:19]} 85. Kd6 {[%clk 0:00:39]}  Kb1 {[%clk 0:01:20]} 86. Ke7 {[%clk 0:00:40]}  Ka1 {[%clk 0:01:20]} 87. Kf6 {[%clk 0:00:41]}  Kb1 {[%clk 0:01:21]} 88. Kg5 {[%clk 0:00:42]}  Ka1 {[%clk 0:01:21]} 89. Kxh4 {[%clk 0:00:43]}  Kb1 {[%clk 0:01:22]} 90. Kg3 {[%clk 0:00:44]}  Ka1 {[%clk 0:01:22]} 91. Kf4 {[%clk 0:00:45]}  Kb1 {[%clk 0:01:23]} 92. Ke5 {[%clk 0:00:46]}  Ka1 {[%clk 0:01:24]} 93. Kd4 {[%clk 0:00:47]}  Kb1 {[%clk 0:01:25]} 94. Kc3 {[%clk 0:00:48]}  Ka1 {[%clk 0:01:25]} 95. Kb3 {[%clk 0:00:48]}  Kb1 {[%clk 0:01:26]} 96. h4 {[%clk 0:00:49]}  Ka1 {[%clk 0:01:26]} 97. h5 {[%clk 0:00:50]}  Kb1 {[%clk 0:01:27]} 98. h6 {[%clk 0:00:51]}  Ka1 {[%clk 0:01:27]} 99. h7 {[%clk 0:00:52]}  Kb1 {[%clk 0:01:28]} 100. b8=Q {[%clk 0:00:39]}  Ka1 {[%clk 0:01:28]} 101. c8=Q {[%clk 0:00:39]}  Kb1 {[%clk 0:01:26]} 102. g8=Q {[%clk 0:00:38]}  Ka1 {[%clk 0:01:27]} 103. Qf7 {[%clk 0:00:37]}  Kb1 {[%clk 0:01:28]} 104. Qfe8 {[%clk 0:00:37]}  Ka1 {[%clk 0:01:29]} 105. Qed7 {[%clk 0:00:37]}  Kb1 {[%clk 0:01:30]} 106. Qdc6 {[%clk 0:00:38]}  Ka1 {[%clk 0:01:31]} 107. Q6b7 {[%clk 0:00:38]}  Kb1 {[%clk 0:01:32]} 108. Qb5 {[%clk 0:00:38]}  Ka1 {[%clk 0:01:33]} 109. Qbc4 {[%clk 0:00:37]}  Kb1 {[%clk 0:01:34]} 110. Qbc7 {[%clk 0:00:36]}  Ka1 {[%clk 0:01:34]} 111. Qd6 {[%clk 0:00:36]}  Kb1 {[%clk 0:01:35]} 112. Qdc5 {[%clk 0:00:37]}  Ka1 {[%clk 0:01:36]} 113. Qe7 {[%clk 0:00:38]}  Kb1 {[%clk 0:01:37]} 114. Qee3 {[%clk 0:00:37]}  Ka1 {[%clk 0:01:38]} 115. Qb6 {[%clk 0:00:35]}  Kb1 {[%clk 0:01:38]} 116. Nd4 {[%clk 0:00:31]}  Ka1 {[%clk 0:01:39]} 117. Ne2 {[%clk 0:00:32]}  Kb1 {[%clk 0:01:40]} 118. Ng1 {[%clk 0:00:31]}  Ka1 {[%clk 0:01:41]} 119. Bg2 {[%clk 0:00:30]}  Kb1 {[%clk 0:01:42]} 120. Bf1 {[%clk 0:00:31]}  Ka1 {[%clk 0:01:43]} 121. Qdb4 {[%clk 0:00:25]}  Kb1 {[%clk 0:01:44]} 122. Qe7 {[%clk 0:00:25]}  Ka1 {[%clk 0:01:45]} 123. Qeb7 {[%clk 0:00:19]}  Kb1 {[%clk 0:01:45]} 124. Q7c7 {[%clk 0:00:19]}  Ka1 {[%clk 0:01:46]} 125. Qh2 {[%clk 0:00:16]}  Kb1 {[%clk 0:01:47]} 126. Qhh6 {[%clk 0:00:16]}  Ka1 {[%clk 0:01:48]} 127. Qg5 {[%clk 0:00:14]}  Kb1 {[%clk 0:01:49]} 128. Qgg6+ {[%clk 0:00:12]}  Ka1 {[%clk 0:01:50]} 129. h8=Q# {[%clk 0:00:13]} 1-0

[Event "December 12 Early 2023"]
[Site "https://www.chess.com"]
[Date "2023.12.12"]
[Round "11"]
[White "Herman, Daniel"]
[Black "NastyaHn"]
[Result "1-0"]
[Board "117"]
[TimeControl "180+1"]
[WhiteFideId "30935008"]
[WhiteElo "2441"]
[BlackElo "2244"]
[WhiteTeam "USA"]
[WhiteClock "0:01:28"]
[BlackClock "0:00:00"]

1. d4 {[%clk 0:03:00]}  Nf6 {[%clk 0:02:58]} 2. c4 {[%clk 0:03:00]}  g6 {[%clk 0:02:58]} 3. Nc3 {[%clk 0:03:01]}  d5 {[%clk 0:02:58]} 4. Nf3 {[%clk 0:02:57]}  Bg7 {[%clk 0:02:57]} 5. e3 {[%clk 0:02:57]}  O-O {[%clk 0:02:55]} 6. Be2 {[%clk 0:02:57]}  dxc4 {[%clk 0:02:44]} 7. Bxc4 {[%clk 0:02:56]}  c5 {[%clk 0:02:45]} 8. dxc5 {[%clk 0:02:48]}  Qxd1+ {[%clk 0:02:21]} 9. Kxd1 {[%clk 0:02:44]}  Nbd7 {[%clk 0:02:19]} 10. c6 {[%clk 0:02:41]}  bxc6 {[%clk 0:02:18]} 11. Bd2 {[%clk 0:02:24]}  Rb8 {[%clk 0:02:15]} 12. Kc2 {[%clk 0:02:20]}  Nc5 {[%clk 0:02:02]} 13. Nd4 {[%clk 0:02:17]}  Bd7 {[%clk 0:01:50]} 14. f3 {[%clk 0:02:12]}  e5 {[%clk 0:01:45]} 15. Nb3 {[%clk 0:02:12]}  Ne6 {[%clk 0:01:19]} 16. Rhd1 {[%clk 0:02:06]}  Rfd8 {[%clk 0:01:11]} 17. Be1 {[%clk 0:02:05]}  Nh5 {[%clk 0:00:29]} 18. Ne4 {[%clk 0:01:59]}  Nc7 {[%clk 0:00:19]} 19. Nbc5 {[%clk 0:01:54]}  Be6 {[%clk 0:00:17]} 20. Nxe6 {[%clk 0:01:51]}  Nxe6 {[%clk 0:00:15]} 21. Bxe6 {[%clk 0:01:42]}  fxe6 {[%clk 0:00:15]} 22. Bh4 {[%clk 0:01:43]}  Rxd1 {[%clk 0:00:11]} 23. Rxd1 {[%clk 0:01:44]}  Bf8 {[%clk 0:00:05]} 24. Rd7 {[%clk 0:01:41]}  Ng7 {[%clk 0:00:03]} 25. g4 {[%clk 0:01:30]}  h6 {[%clk 0:00:02]} 26. Bf6 {[%clk 0:01:29]}  Ne8 {[%clk 0:00:00]} 27. Bxe5 {[%clk 0:01:28]} 1-0

[Event "December 12 Early 2023"]
[Site "https://www.chess.com"]
[Date "2023.12.12"]
[Round "11"]
[White "Kleibel, Uwe"]
[Black "BestestBP"]
[Result "1/2-1/2"]
[Board "121"]
[TimeControl "180+1"]
[WhiteFideId "1270982"]
[WhiteElo "2319"]
[BlackElo "2141"]
[WhiteTeam "GER"]
[WhiteClock "0:00:39"]
[BlackClock "0:00:09"]

1. d4 {[%clk 0:02:59]}  Nf6 {[%clk 0:02:59]} 2. c4 {[%clk 0:02:59]}  e6 {[%clk 0:03:00]} 3. Nc3 {[%clk 0:02:58]}  Bb4 {[%clk 0:03:00]} 4. e3 {[%clk 0:02:59]}  O-O {[%clk 0:03:00]} 5. Bd3 {[%clk 0:02:59]}  d5 {[%clk 0:02:59]} 6. a3 {[%clk 0:02:59]}  Be7 {[%clk 0:02:57]} 7. Nge2 {[%clk 0:02:59]}  c5 {[%clk 0:02:57]} 8. cxd5 {[%clk 0:02:53]}  cxd4 {[%clk 0:02:55]} 9. Nxd4 {[%clk 0:02:51]}  Nxd5 {[%clk 0:02:56]} 10. Nxd5 {[%clk 0:02:51]}  Qxd5 {[%clk 0:02:56]} 11. O-O {[%clk 0:02:51]}  g6 {[%clk 0:02:51]} 12. Qe1 {[%clk 0:02:42]}  b6 {[%clk 0:02:51]} 13. Qe2 {[%clk 0:02:42]}  Bb7 {[%clk 0:02:50]} 14. Nf3 {[%clk 0:02:42]}  Nd7 {[%clk 0:02:46]} 15. e4 {[%clk 0:02:41]}  Qh5 {[%clk 0:02:44]} 16. Bf4 {[%clk 0:02:31]}  Nc5 {[%clk 0:02:43]} 17. Bc2 {[%clk 0:02:26]}  Qg4 {[%clk 0:02:35]} 18. Bh6 {[%clk 0:02:13]}  Rfd8 {[%clk 0:02:30]} 19. Rfe1 {[%clk 0:02:13]}  Bf6 {[%clk 0:02:25]} 20. Rab1 {[%clk 0:02:00]}  Qh5 {[%clk 0:02:21]} 21. Bf4 {[%clk 0:01:41]}  Ba6 {[%clk 0:02:21]} 22. Qe3 {[%clk 0:01:39]}  Bd3 {[%clk 0:02:15]} 23. Bxd3 {[%clk 0:01:35]}  Rxd3 {[%clk 0:02:16]} 24. Qe2 {[%clk 0:01:35]}  Rad8 {[%clk 0:02:08]} 25. h3 {[%clk 0:01:29]}  Nb3 {[%clk 0:01:54]} 26. Rbd1 {[%clk 0:01:26]}  Qb5 {[%clk 0:01:32]} 27. Rxd3 {[%clk 0:01:24]}  Qxd3 {[%clk 0:01:33]} 28. Qxd3 {[%clk 0:01:22]}  Rxd3 {[%clk 0:01:34]} 29. Re2 {[%clk 0:01:20]}  Nd4 {[%clk 0:01:16]} 30. Nxd4 {[%clk 0:01:19]}  Bxd4 {[%clk 0:01:17]} 31. a4 {[%clk 0:01:09]}  Rd1+ {[%clk 0:01:07]} 32. Kh2 {[%clk 0:01:09]}  Rb1 {[%clk 0:01:01]} 33. Rd2 {[%clk 0:01:04]}  e5 {[%clk 0:01:00]} 34. Bh6 {[%clk 0:01:04]}  Rxb2 {[%clk 0:00:58]} 35. Rd3 {[%clk 0:01:03]}  Rxf2 {[%clk 0:00:51]} 36. a5 {[%clk 0:01:01]}  Ra2 {[%clk 0:00:48]} 37. axb6 {[%clk 0:01:01]}  axb6 {[%clk 0:00:49]} 38. Kg3 {[%clk 0:01:01]}  f5 {[%clk 0:00:45]} 39. exf5 {[%clk 0:00:59]}  gxf5 {[%clk 0:00:46]} 40. Rb3 {[%clk 0:00:59]}  Kf7 {[%clk 0:00:43]} 41. Rb5 {[%clk 0:00:51]}  Kg6 {[%clk 0:00:41]} 42. Bf8 {[%clk 0:00:51]}  Rb2 {[%clk 0:00:37]} 43. Rxb2 {[%clk 0:00:47]}  Bxb2 {[%clk 0:00:38]} 44. Kf3 {[%clk 0:00:48]}  Bd4 {[%clk 0:00:38]} 45. g4 {[%clk 0:00:48]}  b5 {[%clk 0:00:32]} 46. Bb4 {[%clk 0:00:46]}  h5 {[%clk 0:00:23]} 47. Kg3 {[%clk 0:00:43]}  e4 {[%clk 0:00:15]} 48. Kf4 {[%clk 0:00:41]}  fxg4 {[%clk 0:00:11]} 49. hxg4 {[%clk 0:00:42]}  e3 {[%clk 0:00:11]} 50. gxh5+ {[%clk 0:00:37]}  Kxh5 {[%clk 0:00:11]} 51. Ke4 {[%clk 0:00:38]}  Bb6 {[%clk 0:00:11]} 52. Kd5 {[%clk 0:00:37]}  Kg4 {[%clk 0:00:11]} 53. Kc6 {[%clk 0:00:38]}  Bd4 {[%clk 0:00:10]} 54. Kxb5 {[%clk 0:00:38]}  Kf3 {[%clk 0:00:11]} 55. Kc4 {[%clk 0:00:39]}  Bf6 {[%clk 0:00:10]} 56. Kd3 {[%clk 0:00:39]}  Kf2 {[%clk 0:00:10]} 57. Bc5 {[%clk 0:00:39]}  Bg5 {[%clk 0:00:09]} 58. Bxe3+ {[%clk 0:00:39]} 1/2-1/2

[Event "December 12 Early 2023"]
[Site "https://www.chess.com"]
[Date "2023.12.12"]
[Round "11"]
[White "Negron Lizarazo, Juan Sebastian"]
[Black "Marcziter, Dmitrii"]
[Result "0-1"]
[Board "122"]
[TimeControl "180+1"]
[WhiteFideId "3936910"]
[BlackFideId "13900765"]
[WhiteElo "2140"]
[BlackElo "2302"]
[WhiteTeam "COL"]
[BlackTeam "GER"]
[WhiteClock "0:00:14"]
[BlackClock "0:01:38"]

1. e4 {[%clk 0:02:18]}  c5 {[%clk 0:02:32]} 2. Nc3 {[%clk 0:02:18]}  a6 {[%clk 0:02:32]} 3. g3 {[%clk 0:02:12]}  Nc6 {[%clk 0:02:29]} 4. Bg2 {[%clk 0:02:08]}  g6 {[%clk 0:02:30]} 5. d3 {[%clk 0:02:04]}  Bg7 {[%clk 0:02:31]} 6. Be3 {[%clk 0:02:00]}  d6 {[%clk 0:02:31]} 7. Qd2 {[%clk 0:01:48]}  Rb8 {[%clk 0:02:29]} 8. h3 {[%clk 0:01:42]}  b5 {[%clk 0:02:26]} 9. Rb1 {[%clk 0:01:24]}  b4 {[%clk 0:02:24]} 10. Nce2 {[%clk 0:01:23]}  Bb7 {[%clk 0:02:22]} 11. f4 {[%clk 0:01:18]}  Nf6 {[%clk 0:02:18]} 12. Nf3 {[%clk 0:01:11]}  O-O {[%clk 0:02:17]} 13. O-O {[%clk 0:01:03]}  a5 {[%clk 0:02:14]} 14. g4 {[%clk 0:00:51]}  a4 {[%clk 0:02:12]} 15. Ng3 {[%clk 0:00:44]}  Ne8 {[%clk 0:02:08]} 16. f5 {[%clk 0:00:39]}  Nd4 {[%clk 0:01:59]} 17. Bh6 {[%clk 0:00:28]}  Nxf3+ {[%clk 0:01:51]} 18. Bxf3 {[%clk 0:00:26]}  f6 {[%clk 0:01:51]} 19. g5 {[%clk 0:00:22]}  Bxh6 {[%clk 0:01:50]} 20. gxh6 {[%clk 0:00:17]}  d5 {[%clk 0:01:42]} 21. h4 {[%clk 0:00:16]}  dxe4 {[%clk 0:01:39]} 22. dxe4 {[%clk 0:00:14]}  Qxd2 {[%clk 0:01:38]} 0-1

[Event "December 12 Early 2023"]
[Site "https://www.chess.com"]
[Date "2023.12.12"]
[Round "11"]
[White "Saim, Mohamed Ilias"]
[Black "Zaichenko, Daria"]
[Result "0-1"]
[Board "127"]
[TimeControl "180+1"]
[WhiteFideId "7900465"]
[BlackFideId "4197453"]
[WhiteElo "2053"]
[BlackElo "2229"]
[WhiteTeam "ALG"]
[BlackTeam "RUS"]
[WhiteClock "0:00:00"]
[BlackClock "0:00:54"]

1. d4 {[%clk 0:02:57]}  d5 {[%clk 0:02:58]} 2. c4 {[%clk 0:02:57]}  e6 {[%clk 0:02:58]} 3. Nf3 {[%clk 0:02:56]}  Be7 {[%clk 0:02:57]} 4. e3 {[%clk 0:02:56]}  Nf6 {[%clk 0:02:57]} 5. Nbd2 {[%clk 0:02:56]}  O-O {[%clk 0:02:58]} 6. Bd3 {[%clk 0:02:57]}  dxc4 {[%clk 0:02:57]} 7. Nxc4 {[%clk 0:02:57]}  c5 {[%clk 0:02:57]} 8. O-O {[%clk 0:02:56]}  Nc6 {[%clk 0:02:56]} 9. dxc5 {[%clk 0:02:53]}  Bxc5 {[%clk 0:02:55]} 10. a3 {[%clk 0:02:51]}  a5 {[%clk 0:02:54]} 11. b3 {[%clk 0:02:51]}  b5 {[%clk 0:02:52]} 12. Nce5 {[%clk 0:02:49]}  Nxe5 {[%clk 0:02:51]} 13. Nxe5 {[%clk 0:02:49]}  Ba6 {[%clk 0:02:44]} 14. Bb2 {[%clk 0:02:40]}  b4 {[%clk 0:02:41]} 15. axb4 {[%clk 0:02:28]}  Bxb4 {[%clk 0:02:38]} 16. Bxa6 {[%clk 0:02:22]}  Rxa6 {[%clk 0:02:37]} 17. Qf3 {[%clk 0:02:17]}  Qd5 {[%clk 0:02:26]} 18. Rfd1 {[%clk 0:02:10]}  Qxf3 {[%clk 0:02:25]} 19. Nxf3 {[%clk 0:02:11]}  Nd5 {[%clk 0:02:23]} 20. Rac1 {[%clk 0:02:01]}  a4 {[%clk 0:02:21]} 21. bxa4 {[%clk 0:01:48]}  Rxa4 {[%clk 0:02:20]} 22. Rc4 {[%clk 0:01:47]}  Rfa8 {[%clk 0:02:14]} 23. Rdc1 {[%clk 0:01:40]}  h6 {[%clk 0:02:11]} 24. h3 {[%clk 0:01:37]}  Ra2 {[%clk 0:02:08]} 25. Bd4 {[%clk 0:01:29]}  Ba3 {[%clk 0:02:00]} 26. Rc8+ {[%clk 0:01:28]}  Rxc8 {[%clk 0:01:57]} 27. Rxc8+ {[%clk 0:01:29]}  Kh7 {[%clk 0:01:58]} 28. Ne5 {[%clk 0:01:27]}  f6 {[%clk 0:01:55]} 29. Nf3 {[%clk 0:01:20]}  e5 {[%clk 0:01:55]} 30. Ba7 {[%clk 0:01:10]}  Bb4 {[%clk 0:01:26]} 31. Rd8 {[%clk 0:00:53]}  Nc3 {[%clk 0:01:17]} 32. Bb8 {[%clk 0:00:45]}  Ne4 {[%clk 0:01:13]} 33. Rc8 {[%clk 0:00:24]}  Ra1+ {[%clk 0:00:59]} 34. Kh2 {[%clk 0:00:18]}  Nxf2 {[%clk 0:00:59]} 35. Rc4 {[%clk 0:00:15]}  Nd3 {[%clk 0:00:56]} 36. Kg3 {[%clk 0:00:08]}  Ra8 {[%clk 0:00:55]} 37. Bc7 {[%clk 0:00:04]}  Rc8 {[%clk 0:00:55]} 38. Rc5 {[%clk 0:00:00]}  Bxc5 {[%clk 0:00:54]} 0-1

[Event "December 12 Early 2023"]
[Site "https://www.chess.com"]
[Date "2023.12.12"]
[Round "11"]
[White "Olcayoz, Gizem"]
[Black "MasterofMasters2006"]
[Result "1-0"]
[Board "128"]
[TimeControl "180+1"]
[WhiteFideId "6301444"]
[WhiteElo "2039"]
[BlackElo "2068"]
[WhiteTeam "TUR"]
[WhiteClock "0:00:32"]
[BlackClock "0:01:20"]

1. e4 {[%clk 0:03:00]}  e5 {[%clk 0:02:59]} 2. Bc4 {[%clk 0:03:00]}  Nf6 {[%clk 0:02:57]} 3. d3 {[%clk 0:03:00]}  Nc6 {[%clk 0:02:57]} 4. Nc3 {[%clk 0:03:00]}  Bc5 {[%clk 0:02:56]} 5. f4 {[%clk 0:03:00]}  d6 {[%clk 0:02:56]} 6. Nf3 {[%clk 0:03:01]}  O-O {[%clk 0:02:55]} 7. f5 {[%clk 0:03:00]}  h6 {[%clk 0:02:54]} 8. a3 {[%clk 0:02:56]}  Ng4 {[%clk 0:02:54]} 9. Ng5 {[%clk 0:02:27]}  Bf2+ {[%clk 0:02:22]} 10. Kf1 {[%clk 0:02:27]}  Be3 {[%clk 0:02:15]} 11. Qxg4 {[%clk 0:02:13]}  Bxg5 {[%clk 0:02:13]} 12. Bxg5 {[%clk 0:01:40]}  Qxg5 {[%clk 0:02:13]} 13. Qxg5 {[%clk 0:01:39]}  hxg5 {[%clk 0:02:14]} 14. Nd5 {[%clk 0:01:39]}  Bd7 {[%clk 0:02:05]} 15. Nxc7 {[%clk 0:01:34]}  Rac8 {[%clk 0:02:05]} 16. Nd5 {[%clk 0:01:34]}  Nd4 {[%clk 0:02:00]} 17. Ne7+ {[%clk 0:01:25]}  Kh7 {[%clk 0:02:00]} 18. Nxc8 {[%clk 0:01:25]}  Nxc2 {[%clk 0:01:57]} 19. Rc1 {[%clk 0:01:20]}  Ne3+ {[%clk 0:01:55]} 20. Ke2 {[%clk 0:01:20]}  Nxc4 {[%clk 0:01:54]} 21. Rxc4 {[%clk 0:01:18]}  Bxc8 {[%clk 0:01:54]} 22. g4 {[%clk 0:01:14]}  Bd7 {[%clk 0:01:54]} 23. h4 {[%clk 0:01:13]}  gxh4 {[%clk 0:01:53]} 24. Rxh4+ {[%clk 0:01:12]}  Kg8 {[%clk 0:01:54]} 25. b3 {[%clk 0:01:00]}  Bc6 {[%clk 0:01:53]} 26. g5 {[%clk 0:00:53]}  Rd8 {[%clk 0:01:50]} 27. Rc1 {[%clk 0:00:51]}  d5 {[%clk 0:01:49]} 28. Rch1 {[%clk 0:00:50]}  Kf8 {[%clk 0:01:43]} 29. Rh8+ {[%clk 0:00:49]}  Ke7 {[%clk 0:01:43]} 30. Rxd8 {[%clk 0:00:49]}  Kxd8 {[%clk 0:01:44]} 31. Ke3 {[%clk 0:00:43]}  dxe4 {[%clk 0:01:37]} 32. dxe4 {[%clk 0:00:44]}  Ke7 {[%clk 0:01:36]} 33. Rh7 {[%clk 0:00:43]}  Kf8 {[%clk 0:01:36]} 34. Rh8+ {[%clk 0:00:41]}  Ke7 {[%clk 0:01:36]} 35. Rg8 {[%clk 0:00:35]}  g6 {[%clk 0:01:19]} 36. fxg6 {[%clk 0:00:34]}  fxg6 {[%clk 0:01:20]} 37. Rxg6 {[%clk 0:00:35]}  Bd7 {[%clk 0:01:20]} 38. Rg7+ {[%clk 0:00:32]} 1-0

[Event "December 12 Early 2023"]
[Site "https://www.chess.com"]
[Date "2023.12.12"]
[Round "11"]
[White "Guzman Lozano, Campo Elias"]
[Black "Sarkar, Justin"]
[Result "1/2-1/2"]
[Board "129"]
[TimeControl "180+1"]
[WhiteFideId "4403746"]
[BlackFideId "2010011"]
[WhiteElo "2189"]
[BlackElo "2284"]
[WhiteTeam "COL"]
[BlackTeam "USA"]
[WhiteClock "0:01:21"]
[BlackClock "0:00:21"]

1. d4 {[%clk 0:02:23]}  Nf6 {[%clk 0:02:45]} 2. Bg5 {[%clk 0:02:23]}  c5 {[%clk 0:02:21]} 3. d5 {[%clk 0:02:20]}  Ne4 {[%clk 0:02:12]} 4. Bf4 {[%clk 0:02:16]}  Qb6 {[%clk 0:02:12]} 5. Nc3 {[%clk 0:02:13]}  Nxc3 {[%clk 0:02:01]} 6. bxc3 {[%clk 0:02:12]}  d6 {[%clk 0:02:01]} 7. e4 {[%clk 0:02:11]}  g6 {[%clk 0:01:59]} 8. Rb1 {[%clk 0:02:05]}  Qa5 {[%clk 0:01:53]} 9. Bd2 {[%clk 0:02:02]}  Bg7 {[%clk 0:01:49]} 10. Bb5+ {[%clk 0:02:01]}  Bd7 {[%clk 0:01:39]} 11. Bxd7+ {[%clk 0:01:59]}  Nxd7 {[%clk 0:01:38]} 12. Rxb7 {[%clk 0:01:59]}  Bxc3 {[%clk 0:01:30]} 13. Nf3 {[%clk 0:01:47]}  Nb6 {[%clk 0:01:09]} 14. O-O {[%clk 0:01:45]}  Bxd2 {[%clk 0:01:08]} 15. Qxd2 {[%clk 0:01:38]}  Qxd2 {[%clk 0:00:24]} 16. Nxd2 {[%clk 0:01:35]}  f6 {[%clk 0:00:23]} 17. Ra1 {[%clk 0:01:27]}  Kf7 {[%clk 0:00:21]} 18. a4 {[%clk 0:01:27]}  Rhb8 {[%clk 0:00:20]} 19. Rc7 {[%clk 0:01:23]}  Rc8 {[%clk 0:00:21]} 20. Rb7 {[%clk 0:01:22]}  Rcb8 {[%clk 0:00:21]} 21. Rc7 {[%clk 0:01:21]}  Rc8 {[%clk 0:00:21]} 22. Rb7 {[%clk 0:01:21]}  Rcb8 {[%clk 0:00:21]} 1/2-1/2